Cogmind - Beta 13 @@@ ROGUE MODE // 2024.04.07 @ 20:27:42 Player: TheHaruspex Result: Destroyed by Y-45 Defender with Beam Rifle Performance ------------- Evolutions (2) 1000 Regions Visited (4) 800 Robots Destroyed (23) 115 Value Destroyed (743) 743 Prototype IDs (7) 140 Alien Tech Used (0) 0 Bonus (21) 21 TOTAL SCORE: 2819 Bonus ------- Follower Combat Kills 21 Cogmind --------- Core Integrity 0/550 Matter 294/300 Energy 100/100 System Corruption 2% Temperature Cool (9) Movement Core (200) Ox3 Location -8/Materials Parts ------- > --- POWER (1) -------- (None) > --- PROPULSION (4) --- (None) > --- UTILITY (4) ------ Medium Storage Unit Transport Network Coupler > --- WEAPON (2) ------- (None) > --- INVENTORY (10) --- Deuterium Engine High-capacity Matter Pod (200) Visual Processing Unit Signal Interpreter Power Shielding Peak State ------------ > --- POWER ------------ Light Nuclear Core > --- PROPULSION ------- Armored Treads Aluminum Leg Aluminum Leg Aluminum Leg > --- UTILITY ---------- Medium Storage Unit Improved Sensor Array Transport Network Coupler Hardened Light Armor Plating > --- WEAPON ----------- High-powered Shotgun Mining Claw > --- INVENTORY -------- Deuterium Engine Improved Heat Sink High-capacity Matter Pod Visual Processing Unit Signal Interpreter Power Shielding Medium Armor Plating EM Pulse Cannon Minigun Datajack [Rating: 22] Favorites ----------- Power Ion Engine Engine Ion Engine Power Core Light Nuclear Core Propulsion Aluminum Leg Treads Armored Treads Leg Aluminum Leg Wheel Wheel Utility Small Storage Unit Device Improved Sensor Array Storage Small Storage Unit Processor Transport Network Coupler Protection Hardened Light Armor Plating Weapon Mining Claw Energy Cannon EM Pulse Cannon Ballistic Gun Light Assault Rifle Slashing Weapon Mining Claw Special Melee Weapon Datajack Build | -11 -10 -9 -9 -8 ------- Run | Yrd Mat Mat Min Mat Slots Evolved 4 | . . 2 . 2 Power . | . . . . . Propulsion 2 | . . 1 . 1 Utility 2 | . . 1 . 1 Weapon . | . . . . . Parts Attached 40 | 6 7 4 1 22 Power 7 | 1 1 . . 5 Engine 2 | 1 1 . . . Core 5 | . . . . 5 Reactor . | . . . . . Propulsion 10 | 2 2 2 . 4 Treads 2 | . . . . 2 Leg 6 | . 2 2 . 2 Wheel 2 | 2 . . . . Hover . | . . . . . Flight . | . . . . . Utility 12 | 1 2 1 1 7 Device 1 | . . . . 1 Storage 2 | 1 . . . 1 Processor 2 | . 1 . . 1 Hackware . | . . . . . Protection 7 | . 1 1 1 4 Artifact . | . . . . . Weapon 11 | 2 2 1 . 6 Energy Gun . | . . . . . Energy Cannon 3 | . . . . 3 Ballistic Gun 5 | 2 . 1 . 2 Ballistic Cannon . | . . . . . Launcher . | . . . . . Special Weapon . | . . . . . Impact Weapon . | . . . . . Slashing Weapon 2 | . 2 . . . Piercing Weapon . | . . . . . Special Melee Weapon 1 | . . . . 1 Unidentified Prototypes . | . . . . . Parts Lost 19 | . . 3 . 16 Power 2 | . . . . 2 Propulsion 7 | . . 1 . 6 Utility 4 | . . 1 . 3 Weapon 6 | . . 1 . 5 Highest Loss Streak 12 | . . 3 . 12 To Critical Strikes . | . . . . . Average Slot Usage (%) 94 | . 99 86 94 94 Engine 6 | . 14 11 11 . Core 4 | . . . . 7 Treads 3 | . . . . 6 Leg 26 | . 18 32 33 27 Wheel 2 | . 9 . . . Device 3 | . . . . 7 Storage 10 | . 14 11 11 9 Processor 3 | . 4 . . 4 Protection 11 | . 8 10 17 12 Energy Cannon 1 | . . . . 3 Ballistic Gun 6 | . 11 1 11 5 Slashing Weapon 12 | . 16 20 11 8 Naked Turns . | . . . . . Heaviest Build 31 | 13 17 18 19 31 Greatest Support 40 | 26 26 30 30 40 Greatest Overweight (x) 5 | . . . . 5 Average Overweight (x) . | . . . . . Largest Inventory Capacity 10 | 8 8 8 8 10 Average Capacity 8 | 7 8 8 8 9 Most Carried 10 | 3 7 8 5 10 Average Carried 6 | 1 4 6 5 8 Final Capacity 10 | 8 8 8 8 10 Final Carried 6 | 3 6 5 5 5 Class Distribution -------------------- 76% | Mutant 23% | Scavenger-Mutant Dominant Class ---------------- Mutant | -10/Materials Mutant | -9/Materials Mutant | -9/Mines Mutant | -8/Materials Resources | -11 -10 -9 -9 -8 ----------- Run | Yrd Mat Mat Min Mat Matter Collected 854 | 213 215 119 33 274 Remotely . | . . . . . Salvage Created 915 | . 218 119 . 578 Parts 44 | . 14 10 . 20 Haulers Intercepted 1 | . . . . 1 Recyclers Shooed . | . . . . . Parts Field Recycled . | . . . . . Retrieved Matter . | . . . . . Parts Self-Destructed . | . . . . . Prevented . | . . . . . Kills | -11 -10 -9 -9 -8 ------- Run | Yrd Mat Mat Min Mat Combat Hostiles Destroyed 18 | . 4 2 . 12 Melee 9 | . 2 2 . 5 Guns 4 | . 2 . . 2 Cannons 3 | . . . . 3 Classes Destroyed 7 | . 3 1 . 3 Worker 1 | . . . . 1 Hauler 1 | . . . . 1 Operator 2 | . 1 1 . . Watcher 1 | . 1 . . . Swarmer 3 | . . . . 3 Grunt 13 | . 4 1 . 8 Sentry 2 | . . 1 . 1 Best Kill Streak 4 | . 3 1 . 4 Combat Bots Only 4 | . 2 1 . 4 Max Kills in Single Turn 1 | . 1 1 . 1 Gunslinging . | . . . . . Exploded . | . . . . . Melee 1 | . 1 1 . 1 Uniques/NPCs Destroyed . | . . . . . Combat | -11 -10 -9 -9 -8 -------- Run | Yrd Mat Mat Min Mat Hostile Shots Fired 247 | . 11 18 . 218 Missed 75 | . 2 9 . 64 Damage Taken 2838 | . 124 312 . 2402 Core 579 | . . 27 . 552 Absorbed by Shields . | . . . . . Regen/Repaired (Parts) 22 | . . . . 22 Core Remaining (%) 97 | 100 100 . 93 . Volleys Fired 51 | . 11 . . 40 Largest 2 | . 2 . . 1 Hottest 63 | . 40 . . 63 Shots Fired 62 | . 22 . . 40 Gun 43 | . 22 . . 21 Cannon 19 | . . . . 19 Launcher . | . . . . . Special . | . . . . . Kinetic 43 | . 22 . . 21 Thermal . | . . . . . Explosive . | . . . . . Electromagnetic 19 | . . . . 19 Robot Hit Streak 10 | . 3 . . 10 Robot Miss Streak 3 | . 1 . . 3 Penetration Max . | . . . . . Secondary Targets . | . . . . . Shots Hit Robots 80 | . 19 6 . 55 Core Hits 38 | . 10 3 . 25 Critical Kills 1 | . 1 . . . Critical Parts Destroyed . | . . . . . Critical Strikes 1 | . 1 . . . Destroy 1 | . 1 . . . Melee Attacks 65 | . 8 19 . 38 Impact . | . . . . . Slashing 64 | . 8 19 . 37 Piercing . | . . . . . Sneak Attacks 5 | . 1 2 . 2 Combat Hostiles . | . . . . . Follow-up Attacks . | . . . . . Damage Inflicted 2061 | . 272 206 . 1583 Guns 454 | . 120 . . 334 Cannons 430 | . . . . 430 Explosions 244 | . . . . 244 Melee 933 | . 152 206 . 575 Ramming . | . . . . . Kinetic 454 | . 120 . . 334 Thermal 244 | . . . . 244 Explosive . | . . . . . Electromagnetic 430 | . . . . 430 Impact . | . . . . . Slashing 933 | . 152 206 . 575 Piercing . | . . . . . Highest Corruption 9 | . . 9 9 2 Average Corruption 8 | . . 9 9 2 Corruption Purged . | . . . . . Corruption Blocked . | . . . . . Effects 5 | . . 1 4 . Message Errors 3 | . . 1 2 . Data Loss (minor) 1 | . . . 1 . Data Loss (major) 1 | . . . 1 . Overload Shots . | . . . . . Overflow Damage 109 | . 48 . . 61 Projectiles 20 | . . . . 20 Explosions . | . . . . . Melee 89 | . 48 . . 41 Knockbacks . | . . . . . Impact . | . . . . . Kinetic . | . . . . . Secondary . | . . . . . Self-Inflicted Damage 49 | . . . . 49 Shots 1 | . . . . 1 Rammed . | . . . . . Targets Rammed . | . . . . . Kicked . | . . . . . Crushed . | . . . . . Highest Temperature 157 | . 34 . . 157 Average Temperature 48 | . 14 . . 54 Received Heat Transfer 1299 | . 87 24 . 1188 Siege Activations . | . . . . . Robots Corrupted 2 | . . . . 2 Combat Hostiles 2 | . . . . 2 Parts Fried 2 | . . . . 2 Impact Corruptions . | . . . . . Robots Melted . | . . . . . Combat Hostiles . | . . . . . Parts Melted . | . . . . . Heat Transferred 300 | . . . . 300 Parts Sabotaged . | . . . . . Parts Stolen . | . . . . . Parts Stripped . | . . . . . Power Chain Reactions 1 | . . . . 1 Alert | -11 -10 -9 -9 -8 ------- Run | Yrd Mat Mat Min Mat Peak Influence 251 | . 147 120 41 251 Initial 41 | . . 10 41 15 Average 80 | . 49 59 41 110 Maximum Alert Level 1 | . . . . 1 Low Security (%) 90 | 100 100 100 100 82 Level 1 9 | . . . . 17 Level 2 . | . . . . . Level 3 . | . . . . . Level 4 . | . . . . . Level 5 . | . . . . . High Security . | . . . . . Max Security . | . . . . . Squads Dispatched 6 | . 2 . . 4 Investigation 1 | . . . . 1 Extermination . | . . . . . Reinforcement 5 | . 2 . . 3 Assault . | . . . . . Garrison . | . . . . . Intercept . | . . . . . Searches Triggered . | . . . . . Construction Impeded . | . . . . . Haulers Reinforced . | . . . . . Active Scanning Responses . | . . . . . Cargo Convoy Interrupts . | . . . . . Stealth | -11 -10 -9 -9 -8 --------- Run | Yrd Mat Mat Min Mat Distress Signals 5 | . 1 2 . 2 Communications Jammed . | . . . . . Distress Signals . | . . . . . Times Spotted 61 | . 9 13 . 39 Peak Tracking Total 9 | . 4 6 . 9 Tactical Retreats 5 | . . . . 5 Traps | -11 -10 -9 -9 -8 ------- Run | Yrd Mat Mat Min Mat Traps Triggered 1 | . . . . 1 Indirectly . | . . . . . Trap Hack Attempts . | . . . . . Triggered . | . . . . . Disarmed . | . . . . . Reprogrammed 4 | . 4 . . . Reused . | . . . . . Traps Extracted . | . . . . . Installed . | . . . . . Triggered 1 | . . . . 1 Machines | -11 -10 -9 -9 -8 ---------- Run | Yrd Mat Mat Min Mat Machines Disabled 1 | . . . . 1 Max in Single Turn . | . . . . . Machines Repaired . | . . . . . Machines Dismantled . | . . . . . Machines Sabotaged . | . . . . . Overloaded Fab Kills . | . . . . . Hacking | -11 -10 -9 -9 -8 --------- Run | Yrd Mat Mat Min Mat Machines Accessed 12 | . 4 4 . 4 Terminals 9 | . 3 4 . 2 Fabricators . | . . . . . Repair Stations 1 | . . . . 1 Recycling Units 2 | . 1 . . 1 Scanalyzers . | . . . . . Garrison Access . | . . . . . Total Hacks 36 | . 10 12 . 14 Successful 17 | . 6 4 . 7 Failed 19 | . 4 8 . 7 Catastrophic 3 | . 2 1 . . Database Lockouts . | . . . . . Manual 1 | . . 1 . . Terminals 28 | . 7 12 . 9 Fabricators . | . . . . . Repair Stations 3 | . . . . 3 Recycling Units 5 | . 3 . . 2 Scanalyzers . | . . . . . Garrison Access . | . . . . . Terminal Hacks 11 | . 4 4 . 3 Prototype ID Bank 4 | . . 2 . 2 Alert Level 1 | . . . . 1 Locate Traps 2 | . 1 1 . . Reprogram Traps 1 | . 1 . . . Maintenance Status 1 | . 1 . . . Hauler Manifests 1 | . . 1 . . Zone Layout 1 | . 1 . . . Fabricator Hacks . | . . . . . Repair Station Hacks 2 | . . . . 2 Scan Component 1 | . . . . 1 Repair 1 | . . . . 1 Recycling Unit Hacks 4 | . 2 . . 2 Report Inventory 2 | . 1 . . 1 Retrieve Components 2 | . 1 . . 1 Scanalyzer . | . . . . . Garrison Access Hacks . | . . . . . Unauthorized Hacks . | . . . . . Terminals . | . . . . . Fabricators . | . . . . . Repair Stations . | . . . . . Recycling Units . | . . . . . Scanalyzers . | . . . . . Garrison Access . | . . . . . Data Cores Recovered 1 | . . 1 . . Used . | . . . . . Hacking Detections 10 | . 2 4 . 4 Full Trace Events 1 | . . . . 1 Feedback Events . | . . . . . Feedback Blocked . | . . . . . Robot Schematics Acquired . | . . . . . Robots Built . | . . . . . Authchips . | . . . . . Time . | . . . . . Total Robot Build Rating . | . . . . . Part Schematics Acquired . | . . . . . Parts Built . | . . . . . Authchips . | . . . . . Time . | . . . . . Total Part Build Rating . | . . . . . Parts Repaired 1 | . . . . 1 Time 26 | . . . . 26 Parts Recycled . | . . . . . Recycled Matter . | . . . . . Retrieved Matter . | . . . . . Retrieved Components 9 | . 1 . . 8 Parts Scanalyzed . | . . . . . Part Schematics Acquired . | . . . . . Parts Damaged . | . . . . . Bothacking | -11 -10 -9 -9 -8 ------------ Run | Yrd Mat Mat Min Mat Used RIF Installer . | . . . . . Robots Hacked 1 | . . . . 1 Non-combat . | . . . . . Combat 1 | . . . . 1 Robot Hacks Applied 1 | . . . . 1 parse_system 1 | . . . . 1 Relay Couplers Released . | . . . . . Fabnet Peak Effective % . | . . . . . Robots Rewired . | . . . . . Allies Hacked . | . . . . . Hacks Repelled . | . . . . . Allies | -11 -10 -9 -9 -8 -------- Run | Yrd Mat Mat Min Mat Total Allies 1 | . . . 1 . Largest Group 1 | . . . 1 1 Highest-Rated Group 31 | . . . 31 31 Highest-Rated Ally 31 | . . . 31 31 Total Orders . | . . . . . Ally Attacks 6 | . . . . 6 Total Damage 82 | . . . . 82 Kills 3 | . . . . 3 Allies Corrupted . | . . . . . Allies Melted . | . . . . . Intel | -11 -10 -9 -9 -8 ------- Run | Yrd Mat Mat Min Mat Robot Analysis Total . | . . . . . Derelict Logs Recovered . | . . . . . Drone Launches . | . . . . . Drone Recoveries . | . . . . . Exploration | -11 -10 -9 -9 -8 ------------- Run | Yrd Mat Mat Min Mat Turns Passed 1964 | 52 447 316 140 1009 Spaces Moved 1064 | 43 305 180 106 430 Core 10 | 2 . . . 8 Treads . | . . . . . Legs 924 | . 216 180 106 422 Wheels 130 | 41 89 . . . Hover . | . . . . . Flight . | . . . . . Fastest Speed 50 | 50 90 120 120 120 Average Speed 120 | 87 111 120 120 131 Slowest Speed 300 | 90 120 120 120 300 Overloaded Moves . | . . . . . Propulsion Burnouts . | . . . . . Robots Hopped . | . . . . . Cave-ins Triggered 1 | . . 1 . . Exploration Rate (%) 29 | 5 42 23 41 38 Regions Visited 4 Branch Regions 1 Pre-discovered Areas . | . . . . . Known Exits Taken . | . . . . . Unknown Exits Taken 4 | 1 1 1 1 . Scrap Searched 1 | . . . 1 . Spaces Dug 3 | . . 3 . . Terrain Destroyed 8 | . . 3 . 5 Melee 3 | . . 3 . . Projectile . | . . . . . AOE 5 | . . . . 5 Terrain Rammed . | . . . . . Walls Destroyed . | . . . . . Machines Disabled . | . . . . . Actions | -11 -10 -9 -9 -8 --------- Run | Yrd Mat Mat Min Mat Total 1559 | 54 382 245 118 760 Wait 300 | 3 39 41 12 205 Move 1060 | 42 304 179 105 430 Hop . | . . . . . Pick Up 21 | 3 4 3 . 11 Fast Attach 24 | 6 6 1 1 10 Attach 11 | . 1 3 . 7 Detach 9 | . 6 . . 3 Swap 5 | . . . . 5 Drop 17 | . 5 1 . 11 Fire 51 | . 11 . . 40 Melee 61 | . 6 17 . 38 Ram . | . . . . . Kick . | . . . . . Crush . | . . . . . Escape Stasis . | . . . . . Rewire . | . . . . . Trap . | . . . . . Miscellaneous . | . . . . . Route ------- -11/Scrapyard -10/Materials -9/Materials -9/Mines -8/Materials (discovered 1 exit: [*Fac]) History --------- Turn | Location | Event 10 | -11/Scrapyard | Discovered new exit (range 16) 53 | -11/Scrapyard | Entered Materials 306 | -10/Materials | Build established: Mutant 487 | -10/Materials | Discovered new exit (range 6) 500 | -10/Materials | Entered another Materials area 500 | -9/Materials | Evolved 2 slots: Propulsion x1, Utility x1 708 | -9/Materials | Discovered new exit (range 15) 773 | -9/Materials | Crushed by falling debris 804 | -9/Materials | Lost 3 parts (1n1u1w) 816 | -9/Materials | Entered Mines 943 | -9/Mines | Discovered new exit (range 11) 947 | -9/Mines | Received a Mining Laser from a helpful Derelict 956 | -9/Mines | Entered Materials 956 | -8/Materials | Accompanied by 1 ally 956 | -8/Materials | Evolved 2 slots: Propulsion x1, Utility x1 1142 | -8/Materials | Repaired Power Shielding 1429 | -8/Materials | Discovered new exit (range 11) 1795 | -8/Materials | Build established: Scavenger-Mutant 1944 | -8/Materials | Core integrity fell below 50% 1952 | -8/Materials | Core integrity fell below 20% 1965 | -8/Materials | Destroyed by Y-45 Defender with Beam Rifle Last Messages --------------- misinterpreted. 01952_ G-47 Trooper triggered Shock Trap. 01952_ The floor emits a surge of raw power. 01953_ G-47 Trooper system terminally corrupted. 01953_ U-05 Engineer lays Concrete. 01953_ K-01 Serf collects debris. 01954_ U-05 Engineer lays Concrete. 01954_ Datajack destroyed. 01954_ U-05 Engineer builds a Door. 01955_ U-05 Engineer builds a Wall. 01956_ G-47 Trooper destroyed. 01956_ K-01 Serf collects debris. 01958_ U-05 Engineer lays Concrete. 01961_ K-01 Serf collects debris. 01961_ U-05 Engineer lays Concrete. 01961_ Critical hit (Burn: +37). 01961_ U-05 Engineer lays Concrete. 01962_ G-47 Trooper suffers critical hit (Burn). 01963_ K-01 Serf collects debris. 01963_ K-01 Serf destroyed. Map ----- +----------------------------------------------------+ | ????????????????????# ***???????# """ + #???# | | ????????????????????# ***???????# """ # #???# | | ????????????????????? ***???????#!* % *# #???# | | ?????????????????????? ???????# ] # #???# | | ???????????????????????T" ???????##+##### ##### | | ???????????????????????? ????????#%#???# # | | ??????????????????????###+###??????#[#???# #% | | ??????????????????????# ########%##### %+% | | ?????????????????###### *[= #=""" | | ?????????????????+ * # """ | | ??????????????????????# # """ | | ??????????????????????# ######## ####### | | ????????????????????#### g## # #?????##### | | ???????????????######""# ## """ # #?????????? | | ???????????????# # Y##] """ # #?????????? | | ???????????????# /uu ## """ # #?????????? | | ???????????????# #% ## # # """ ] #? | | ???????????????# #ugg## """ / + #? | | ???????????? ?#########Y!%## """ # # " " #? | | ??????????? ####### [%!# """ # #]? "T" ?? | | ??????????? * # # #? ??"""??? | | ??????????? ! + """ # #? ??? ??? | | ??????????? # """ + #??#??????? | | ??????????? ###+### # """ # #?????????? | | ?????????????#????????### ###] # #?????????? | | ????????????????????????#@#?## ?#### #?????????? | | ????????????????????????# #????????? #?????????? | | ????????????????????????#+#????????? #?????????? | | ?a??????????????????????? ?????????? #?????????? | | ?????????????????????????"?????????? #?????????? | | ?????????????????????????"?????????? #?????????? | | ???????????????????????????????????? ??????????? | | ?????????????????????????????????????????????????? | | ?????????????????????????????????????????????????? | | ????????????????????????????????????????????a????? | | ?????????????????????????????????????????????????? | | ?????????????????????????????????????????????????? | | ?????????????????????????????????????????????????? | | ?????????????????????????????????????????????????? | | ?????????????????????????????????????????????????? | | ????a????????????????????????????????????????????? | | ?????????????????????????????????????????????????? | | ?????????????????????????????????????????????????? | | ?????????????????????????????????????????????????? | | ?????????????????????????????????????????????????? | | ?????????????????????????????????????????????????? | | ?????????????????????????????????????????????????? | | ?????????????????????????????????????????????????? | | | | | +----------------------------------------------------+ Best States ------------- Heat Dissipation 31 Energy Generation 14 Energy Capacity 250 Matter Stores 300 Matter Capacity 300 Sight Range 16 Robot Scan Range 15 Terrain Scan Density 10 Armor Coverage 375 Power Shielding 33 Evasion (%) 55 Targeting Accuracy 5 Item Schematics ----------------- None Robot Schematics ------------------ None Fabricated ------------ Nothing Alien Tech Used ----------------- None Achievements -------------- None Challenges ------------ None Game ------ Seed BladeHardlightCleaver Manual? 0 Play Time 00:45:54 Cumulative 9.2 hours Start 2024.04.07 @ 19:26:28 End 2024.04.07 @ 20:27:42 Sessions 1 Manual Loads 0 Difficulty Rogue Special Mode None Game No. 8 Rogue 8 Adventurer 0 Explorer 0 Win Type - Total 0 Types 0/0/0/0/0/0/0/0/0 Lore% 9 Gallery% 12 Achievement% 12 Wizard Run 0 Options --------- Layout 1 ASCII 0 Keyboard 0 Movement Numpad Keybinds 0 Fullscreen 1 Font 24/Smallcaps Map View 50x35 Zoom Use 0% Tactical HUD 1 Map Filters NONE Filters NONE Steam 1 RUN: b6000293-dfe9-4d11-9d2d-e83bc93c27d3